Workbook

Sheet 目錄
A1: 目錄
A2: A-1車廂意匠
A3: A-2車廂內裝
A4: A-3車廂外部
A5: A-4控制與其他

Sheet A-1車廂意匠
A1: A-1 車廂意匠
A2: 序號 | B2: 名稱 | C2: 編號 | D2: 規格/備註 | E2: 配置 | F2: 成本(NT) | G2: 定價 | H2: 單位
A3: 1 | B3: 車廂意匠 | C3: MA002 | D3: 吊頂：MB005(鑽石銀烤漆+發紋不銹鋼+乳白透光板) 兩側側板：彩妝鋼板ML001+彩妝鋼板ML002 後側側板：彩妝鋼板ML001+彩妝鋼板ML002 前側側板：發紋不銹鋼 轎門：彩妝鋼板ML002 地板：PVC(MD001) | E3: 標配 | F3: 8527.68 | G3: 0 | H3: 台
A4: 2 | B4: 車廂意匠 | C4: MA006 | D4: 吊頂：MB010(鏡面不銹鋼、透光軟膜) 兩側側板：鏡面不銹鋼蝕刻鍍黑鈦 後側側板：鏡面不銹鋼鍍黑鈦+彩妝鋼板 ML005 前側側板：鏡面不銹鋼鍍黑鈦 轎門：鏡面不銹鋼蝕刻鍍黑鈦 地板：大理石(MD011) | E4: 選配 | F4: 67840.12572 | G4: 120000 | H4: 台
A5: 3 | B5: 車廂意匠 | C5: MA005 | D5: 吊顶：MB009(钻石银烤漆+乳白透光板) 两侧侧板：彩妆钢板ML002 后侧侧板：发纹不锈钢+镜面不锈钢 前侧侧板：发纹不锈钢 轿门：彩妆钢板ML002 地板：PVC(MD001) | E5: 選配 | F5: 1532.023778 | G5: 16000 | H5: 台
A6: 4 | B6: 車廂意匠 | C6: MA007 | D6: 吊顶：MB012(镜面不锈钢、乳白透光板) 两侧侧板：发纹不锈钢+镜面不锈钢 后侧侧板：发纹不锈钢+镜面不锈钢 前侧侧板：发纹不锈钢 轿门：发纹不锈钢 地板：PVC(MD005) | E6: 選配 | F6: 12502.53874 | G6: 33600 | H6: 台
A7: 5 | B7: 車廂意匠 | C7: MA008 | D7: 吊顶：MB011(镜面不锈钢镀黑钛、乳白透光板) 两侧侧板：镜面不锈钢镀黑钛+防火板 后侧侧板：镜面不锈钢镀黑钛+防火板 前侧侧板：镜面不锈钢镀黑钛 轿门：镜面不锈钢镀黑钛 地板：PVC(MD013) | E7: 選配 | F7: 0 | G7: 150000 | H7: 台
A8: 6 | B8: 車廂意匠 | C8: MA017 | D8: 吊顶：MB010(RAL9005砂纹+乳白透光板) 两侧侧板：烤漆RAL9003砂纹+镜面不锈钢镀黑钛 后侧侧板：烤漆RAL9003砂纹+镜面不锈钢镀黑钛 前侧侧板：烤漆RAL9003砂纹 轿门：烤漆RAL9003砂纹 地板：PVC(MD005) | E8: 選配 | F8: 2640.96 | G8: 27300 | H8: 台
A9: 7 | B9: 車廂意匠 | C9: MA018 | D9: 吊顶：MB013(RAL9003砂纹+LED灯板) 两侧侧板：烤漆RAL9005砂纹+烤漆RAL9003砂纹+ 镜面不锈钢镀黑钛 后侧侧板：烤漆RAL9003砂纹+镜面不锈钢镀黑钛 前侧侧板：烤漆RAL9003砂纹 轿门：烤漆RAL9003砂纹 地板：PVC(MD005) | E9: 選配 | F9: 0 | G9: 10000 | H9: 台
A10: 8 | B10: 車廂意匠 | C10: MA019 | D10: 吊顶：MB014(RAL9003砂纹+LED灯板) 两侧侧板：彩妆钢板ML002+镜面不锈钢 后侧侧板：彩妆钢板ML002+镜面不锈钢 前侧侧板：发纹不锈钢 轿门：彩妆钢板ML002 地板：PVC(MD006) | E10: 標配 | F10: 17842.5 | G10: 36000 | H10: 台
A11: 9 | B11: 車廂意匠 | C11: MA020 | D11: 吊顶：MB015(烤漆RAL1015+烤漆RAL9005+ LED方灯) 两侧侧板：彩妆钢板ML006 后侧侧板：彩妆钢板ML006+镜面饰条 前侧侧板：发纹不锈钢 轿门：彩妆钢板ML006 地板：PVC(MD001) | E11: 標配 | F11: 19651.5 | G11: 40000 | H11: 台
A12: 10 | B12: 車廂意匠 | C12: MA021 | D12: 吊顶：MB011(镜面不锈钢镀黑钛+乳白透光板) 两侧侧板：镜面不锈钢镀黑钛+蚀刻香槟金镀色 后侧侧板：镜面不锈钢镀黑钛+蚀刻香槟金镀色 前侧侧板：镜面不锈钢镀黑钛 轿门：镜面不锈钢镀黑钛 地板：PVC(MD006) | E12: 選配 | F12: 45692.64 | G12: 92000 | H12: 台

Sheet A-2車廂內裝
A1: A-2 車廂內裝
A2: 序號 | B2: 名稱 | C2: 編號 | D2: 規格/備註 | E2: 配置 | G2: 成本(NT) | H2: 定價 | I2: 單位
A3: A-2-1天井
A4: 1 | B4: 天井 | C4: MB001 | D4: 黑色烤漆、乳白透光板 | E4: 標配 | G4: 1440 | H4: 5000 | I4: 台
A5: 2 | B5: 天井 | C5: MB002 | D5: 黑色烤漆、乳白透光板 | E5: 標配 | G5: 1438.439354 | H5: 5000 | I5: 台
A6: 3 | B6: 天井 | C6: MB003 | D6: 烤漆鋼板、深灰烤漆鋼板、LED方燈 | E6: 標配 | G6: 0 | I6: 台
A7: 4 | B7: 天井 | C7: MB004 | D7: 香檳色烤漆鋼板、乳白透光板、筒燈 | E7: 標配 | G7: 1400.048569 | H7: 2800 | I7: 台
A8: 5 | B8: 天井 | C8: MB005 | D8: 鑽石銀烤漆鋼板邊框、發紋不銹鋼、乳白透光板、筒燈 | E8: 選配 | G8: 5203.4237 | H8: 10500 | I8: 台
A9: 6 | B9: 天井 | C9: MB006 | D9: 鏡面不銹鋼、乳白透光板 | E9: 選配 | G9: 4676.164651 | H9: 10000 | I9: 台
A10: 7 | B10: 天井 | C10: MB007 | D10: 黑色烤漆鋼板邊框、黑鈦鏡面不銹鋼、乳白透光板、筒燈 | E10: 選配 | G10: 6145.917487 | H10: 13000 | I10: 台
A11: 8 | B11: 天井 | C11: MB008 | D11: 鑽石銀烤漆鋼板邊框、鏡面不銹鋼、乳白透光板、筒燈 | E11: 選配 | G11: 6145.917487 | H11: 13000 | I11: 台
A12: 9 | B12: 天井 | C12: MB009 | D12: 鑽石銀烤漆鋼板、乳白透光板 | E12: 選配 | G12: 4006.404856 | H12: 8400 | I12: 台
A13: 10 | B13: 天井 | C13: MB010 | D13: 鏡面不銹鋼、透光軟膜 | E13: 選配 | G13: 23924.24192 | H13: 45000 | I13: 台
A14: 11 | B14: 天井 | C14: MB011 | D14: 鏡面不銹鋼鍍黑鈦、乳白透光板 | E14: 選配 | G14: 20217.99222 | H14: 45000 | I14: 台
A15: 12 | B15: 天井 | C15: MB012 | D15: 鏡面不銹鋼、乳白透光板 | E15: 標配 | G15: 4006.404856 | H15: 8400 | I15: 台
A16: 13 | B16: 天井 | C16: MB002 | D16: SUS304-1.2t發紋不銹鋼（標準：依巨龍標準） | E16: 加價 | G16: 4006.404856 | H16: 8400 | I16: 台
A17: 14 | B17: 天井 | C17: MB009 | D17: SUS304-1.3t發紋不銹鋼（標準：依巨龍標準） | E17: 加價 | G17: 4006.404856 | H17: 8400 | I17: 台
A18: 15 | B18: 天井 | C18: MB003 | D18: SUS304-1.4t發紋不銹鋼（標準：依巨龍標準） | E18: 加價 | G18: 7251.411504 | H18: 12500 | I18: 台
A19: 16 | B19: 天井 | C19: MB001 | D19: SUS304-1.5t發紋不銹鋼（標準：依巨龍標準） | E19: 加價 | G19: 4006.404856 | H19: 8400 | I19: 台
A20: 17 | B20: 天井 | C20: MB004 | D20: SUS304-1.6t發紋不銹鋼（標準：依巨龍標準） | E20: 加價 | G20: 5628.90818 | H20: 9500 | I20: 台
A21: 18 | B21: 天井 | C21: MB002 | D21: 材質-SUS304-1.5t發紋不銹鋼 （標準：依巨龍標準） | E21: 加價 | G21: 4927.877973 | H21: 9500 | I21: 台
A22: 19 | B22: 天井 | C22: MB009 | D22: 材質-SUS304-1.6t發紋不銹鋼 （標準：依巨龍標準） | E22: 加價 | G22: 4927.877973 | H22: 9500 | I22: 台
A23: 20 | B23: 天井 | C23: MB003 | D23: 材質-SUS304-1.7t發紋不銹鋼 （標準：依巨龍標準） | E23: 加價 | G23: 8919.23615 | H23: 15500 | I23: 台
A24: 21 | B24: 天井 | C24: MB001 | D24: 材質-SUS304-1.8t發紋不銹鋼 （標準：依巨龍標準） | E24: 加價 | G24: 4927.877973 | H24: 9500 | I24: 台
A25: 22 | B25: 天井 | C25: MB004 | D25: 材質-SUS304-1.9t發紋不銹鋼 （標準：依巨龍標準） | E25: 加價 | G25: 6923.557062 | H25: 12500 | I25: 台
A26: 23 | B26: 天井 | C26: MB002 | D26: 材質-SUS304-1.5t鏡面不銹鋼 （標準：依巨龍標準） | E26: 加價 | G26: 5363.415877 | H26: 11500 | I26: 台
A27: 24 | B27: 天井 | C27: MB009 | D27: 材質-SUS304-1.6t鏡面不銹鋼 （標準：依巨龍標準） | E27: 加價 | G27: 5363.415877 | H27: 11500 | I27: 台
A28: 25 | B28: 天井 | C28: MB003 | D28: 材質-SUS304-1.7t鏡面不銹鋼 （標準：依巨龍標準） | E28: 加價 | G28: 9698.762887 | H28: 17500 | I28: 台
A29: 26 | B29: 天井 | C29: MB001 | D29: 材質-SUS304-1.8t鏡面不銹鋼 （標準：依巨龍標準） | E29: 加價 | G29: 5363.415877 | H29: 11500 | I29: 台
A30: 27 | B30: 天井 | C30: MB004 | D30: 材質-SUS304-1.9t鏡面不銹鋼 （標準：依巨龍標準） | E30: 加價 | G30: 7042.933424 | H30: 12500 | I30: 台
A31: A-2-2地板
A32: 28 | B32: 地板 | C32: MD001 | D32: PVC | E32: 標配 | G32: 0 | I32: 台
A33: 29 | B33: 地板 | C33: MD002 | D33: PVC | E33: 標配 | G33: 0 | I33: 台
A34: 30 | B34: 地板 | C34: MD003 | D34: PVC | E34: 標配 | G34: 0 | I34: 台
A35: 31 | B35: 地板 | C35: MD004 | D35: PVC | E35: 選配 | G35: 2720.729596 | H35: 5200 | I35: 台
A36: 32 | B36: 地板 | C36: MD005 | D36: PVC | E36: 選配 | G36: 2720.729596 | H36: 5200 | I36: 台
A37: 33 | B37: 地板 | C37: MD006 | D37: PVC | E37: 選配 | G37: 2720.729596 | H37: 5200 | I37: 台
A38: 34 | B38: 地板 | C38: MD007 | D38: PVC | E38: 選配 | G38: 2720.729596 | H38: 5200 | I38: 台
A39: 35 | B39: 地板 | C39: MD008 | D39: PVC | E39: 選配 | G39: 2720.729596 | H39: 5200 | I39: 台
A40: 36 | B40: 地板 | C40: MD009 | D40: PVC | E40: 選配 | G40: 1999.158372 | H40: 4200 | I40: 台
A41: 37 | B41: 地板 | C41: MD010 | D41: PVC | E41: 選配 | G41: 3147.112593 | H41: 6500 | I41: 台
A42: 38 | B42: 地板 | C42: MD011 | D42: 大理石 | E42: 選配 | G42: 16910.07374 | H42: 35000 | I42: 台
A43: 39 | B43: 地板 | C43: MD012 | D43: 大理石 | E43: 選配 | G43: 16910.07374 | H43: 35000 | I43: 台
A44: 40 | B44: 地板地磚貼付BY業主 | C44: 客梯 | D44: P6~P24人 | H44: 0 | I44: 台
A45: 41 | B45: 地板 花紋不鏽鋼板 | C45: 客梯 | D45: P6~P13人 (一片式) | G45: =H45*0.6 -> 13080 | H45: 21800 | I45: 台
A46: 42 | B46: 地板 花紋不鏽鋼板 | C46: 客梯 | D46: P15人 (一片式) | G46: =H46*0.6 -> 15060 | H46: 25100 | I46: 台
A47: 43 | B47: 地板 花紋不鏽鋼板 | C47: 客梯 | D47: P17~P24人 (僅接合式) | G47: 23220 | H47: 38700 | I47: 台
A48: 44 | B48: 地板_大理石貼付預留 | C48: 小電梯 | D48: P6~P8人 | G48: 6000 | H48: 10000 | I48: 台
A49: 45 | B49: 地板_大理石貼付預留 | C49: 客梯 | D49: P9人 | G49: 9000 | H49: 15000 | I49: 台
A50: 46 | B50: 地板_大理石貼付預留 | C50: 客梯 | D50: P10人(10停)(120M(含)以下) | G50: 23580 | H50: 39300 | I50: 台
A51: 47 | B51: 地板_大理石貼付預留 | C51: 客梯 | D51: P11人(10停)(120M(含)以下) | G51: 24240 | H51: 40400 | I51: 台
A52: 48 | B52: 地板_大理石貼付預留 | C52: 客梯 | D52: P12~15人(10停)(60~105m) | G52: 21780 | H52: 36300 | I52: 台
A53: 49 | B53: 地板_大理石貼付預留 | C53: 客梯 | D53: P17人(60~105m) | G53: 8940 | H53: 14900 | I53: 台
A54: 50 | B54: 地板_大理石貼付預留 | C54: 客梯 | D54: P20~24人(任何速度) | G54: 9420 | H54: 15700 | I54: 台
A55: 51 | B55: 地板_大理石貼付預留 | C55: 客梯 | D55: P13人(120M) | G55: 8520 | H55: 14200 | I55: 台
A56: 52 | B56: 地板_大理石貼付預留 | C56: 客梯 | D56: P15人(20停)(120M) | G56: 75840 | H56: 126400 | I56: 台
A57: 53 | B57: 地板_大理石貼付預留 | C57: 客梯 | D57: P17人(120M) | G57: 8280 | H57: 13800 | I57: 台
A58: 54 | B58: 地板_大理石貼付預留 | C58: 客梯 | D58: P13~17人(150M) | G58: 9240 | H58: 15400 | I58: 台
A59: 55 | B59: 地板_石英磚貼付預留(10mm) | C59: 客梯 | D59: P6~P24人 | G59: 6540 | H59: 10900 | I59: 台
A60: 56 | B60: 地板_大理石貼付預留 | C60: 客梯 | D60: P6~P24人(無機房用) | G60: 6120 | H60: 10200 | I60: 台
A61: 57 | B61: 地板 花紋不鏽鋼板 (SH) | C61: 貨梯 | D61: 1000kg以內 | G61: 13680 | H61: 22800 | I61: 台
A62: 58 | B62: 地板 花紋不鏽鋼板 (SH) | C62: 貨梯 | D62: 1500~2000kg | G62: 30900 | H62: 51500 | I62: 台
A63: 59 | B63: 地板 花紋不鏽鋼板 (SH) | C63: 貨梯 | D63: 2500~3000kg | G63: 64380 | H63: 107300 | I63: 台
A64: 60 | B64: 地板_車廂地毯(P-11人(含)以下) | C64: 客梯 | G64: 2040 | H64: 3400 | I64: 台
A65: 61 | B65: 地板_車廂地毯(P-12人(含)以上) | C65: 客梯 | G65: 2460 | H65: 4100 | I65: 台
A66: 62 | B66: 地板_3M地毯(P-11人(含)以下) | C66: 客梯 | G66: 2460 | H66: 4100 | I66: 台
A67: 63 | B67: 地板_3M地毯(P-12人(含)以上) | C67: 客梯 | G67: 3300 | H67: 5500 | I67: 台
A68: A-2-3操縱盤
A69: 64 | B69: 操縱盤 | C69: ME001 | D69: 主操縱盤 | E69: 標配 | G69: 0 | I69: 台
A70: 65 | B70: 操縱盤 | C70: ME002 | D70: 主操縱盤 | E70: 選配 | G70: 0 | H70: 2500 | I70: 台
A71: 66 | B71: 操縱盤 | C71: ME003 | D71: 主操縱盤 | E71: 選配 | G71: 57.98230088 | H71: 2500 | I71: 台
A72: 67 | B72: 操縱盤 | C72: ME004 | D72: 主操縱盤 | E72: 選配 | G72: 151.6460177 | H72: 2500 | I72: 台
A73: 68 | B73: 操縱盤 | C73: ME005 | D73: 主操縱盤在ME001基礎上追加語音呼梯 | E73: 選配 | G73: 2029.380531 | H73: 3990 | I73: 台
A74: 69 | B74: 操縱盤 | C74: ME006 | D74: 側邊一體式操縱盤 | E74: 選配 | G74: 4370.973451 | H74: 8820 | I74: 台
A75: 70 | B75: 操縱盤 | C75: ME007 | D75: 側邊一體式操縱盤在ME006基礎上追加盲文點字板 | E75: 選配 | G75: 4518.159292 | H75: 9030 | I75: 台
A76: 71 | B76: 操縱盤 | C76: ME008 | D76: 一體式前側板用 | E76: 選配 | G76: 4616.283186 | H76: 9240 | I76: 台
A77: 72 | B77: 操縱盤 | C77: ME009 | D77: 一體式前側板用在ME008基礎上追加盲文點字板 | E77: 選配 | G77: 4767.84 | H77: 9600 | I77: 台
A78: 73 | B78: 操縱盤 | C78: ME010 | D78: 外掛式殘障用 | E78: 選配 | G78: 4089.982301 | H78: 8300 | I78: 台
A79: 74 | B79: 操縱盤 | C79: ME011 | D79: 嵌入式殘障用 | E79: 選配 | G79: 4140.382301 | H79: 8800 | I79: 台
A80: 75 | B80: 操縱盤 | C80: ME012 | D80: 外掛式附顯示殘障用 | E80: 選配 | G80: 4971.982301 | H80: 10000 | I80: 台
A81: 76 | B81: 操縱盤 | C81: ME013 | D81: 嵌入式附顯示殘障用 | E81: 選配 | G81: 4921.582301 | H81: 10000 | I81: 台
A82: 77 | B82: 操縱盤 | C82: ME014 | D82: 在ME002基礎上追加盲文點字板 | E82: 選配 | G82: 154.9911504 | H82: 1000 | I82: 台
A83: 78 | B83: 操縱盤 | C83: ME015 | D83: 在ME003基礎上追加盲文點字板 | E83: 選配 | G83: 54.19115044 | H83: 3500 | I83: 台
A84: 79 | B84: 操縱盤 | C84: ME016 | D84: 在ME001基礎上追加電話機鍵盤 | E84: 選配 | G84: 1033.2 | H84: 2500 | I84: 台
A85: 80 | B85: 操縱盤 | C85: ME017 | D85: 在ME002基礎上追加電話機鍵盤 | E85: 選配 | G85: 1036.99115 | H85: 2500 | I85: 台
A86: 81 | B86: 操縱盤 | C86: ME018 | D86: 在ME003基礎上追加電話機鍵盤 | E86: 選配 | G86: 1087.39115 | H86: 3500 | I86: 台
A87: A-2-4扶手
A88: 82 | B88: 扶手 | C88: MC001 | D88: 不銹鋼扁平扶手 | E88: 選配 | G88: 1789.423009 | H88: 3500 | I88: 支
A89: 83 | B89: 扶手 | C89: MC002 | D89: 不銹鋼圓形扶手 | E89: 選配 | G89: 1342.067257 | H89: 3500 | I89: 支
A90: 84 | B90: 扶手 | C90: MC003 | D90: 不銹鋼彎管扶手 | E90: 選配 | G90: 1789.423009 | H90: 3500 | I90: 支
A91: 85 | B91: 扶手 | C91: MC004 | D91: 不銹鋼紅木扶手 | E91: 選配 | G91: 2236.778761 | H91: 5000 | I91: 支
A92: 86 | B92: 扶手 | C92: MC005 | D92: 鏡面黑鈦扶手 | E92: 選配 | G92: 2268 | H92: 7000 | I92: 支
A93: A-2-5 車廂門與層門(轎門/層門)
A94: 87 | B94: 轎門2100mm （標準：噴塗或彩粧鋼板） | D94: SUS304-1.5t發紋不銹鋼 | E94: 加價 | G94: 2754 | H94: 5200 | I94: 停
A95: 88 | B95: 轎門2100mm （標準：噴塗或彩粧鋼板） | D95: SUS304-1.2t發紋不銹鋼 | E95: 加價 | G95: 2292 | H95: 4800 | I95: 停
A96: 89 | D96: SUS304-1.5t發紋不銹鋼 鍍鈦 | E96: 加價 | G96: 7106.334372 | H96: 11000 | I96: 停
A97: 90 | D97: SUS304-1.5t鏡面不銹鋼 | E97: 加價 | G97: 3110.992566 | H97: 9470 | I97: 停
A98: 91 | D98: SUS304-1.5t鏡面不銹鋼 鍍鈦 | E98: 加價 | G98: 7590.654287 | H98: 13250 | I98: 停
A99: 92 | D99: SUS304-1.5t鏡面不銹鋼 蝕刻 | E99: 加價 | G99: 6517.296637 | H99: 13250 | I99: 停
A100: 93 | D100: SUS304-1.5t鏡面不銹鋼 蝕刻 鍍鈦 | E100: 加價 | G100: 8775.274619 | H100: 16500 | I100: 停
A101: 94 | D101: 四周包邊玻璃轎門SUS304-1.2t發紋不銹鋼 | E101: 加價 | G101: 12343.38053 | H101: 30500 | I101: 停
A102: 95 | D102: 四周包邊玻璃轎門SUS304-1.5t鏡面不銹鋼 | E102: 加價 | G102: 15376.30088 | H102: 39500 | I102: 停
A103: 96 | B103: 層門2100mm （標準：噴塗Q235A-1.5t） | D103: SUS304-1.5t發紋不銹鋼 | E103: 加價 | G103: 3396.784269 | H103: 5200 | I103: 停
A104: 97 | D104: 噴塗Q235A-1.2t | E104: 加價 | G104: -239.0575221 | H104: 0 | I104: 停
A105: 98 | D105: SUS304-1.2t發紋不銹鋼 | E105: 加價 | G105: 2729.20817 | H105: 4500 | I105: 停
A106: 99 | D106: SUS304-1.5t發紋不銹鋼 鍍鈦 | E106: 加價 | G106: 6224.165395 | H106: 9500 | I106: 停
A107: 100 | D107: SUS304-1.5t鏡面不銹鋼 | E107: 加價 | G107: 3527.681543 | H107: 7800 | I107: 停
A108: 101 | D108: SUS304-1.5t鏡面不銹鋼 鍍鈦 | E108: 加價 | G108: 6708.48531 | H108: 12000 | I108: 停
A109: 102 | D109: SUS304-1.5t鏡面不銹鋼 蝕刻 | E109: 加價 | G109: 5654.762251 | H109: 12000 | I109: 停
A110: 103 | D110: SUS304-1.5t鏡面不銹鋼 蝕刻 鍍鈦 | E110: 加價 | G110: 7893.105642 | H110: 15000 | I110: 停
A111: 104 | D111: 四周包邊玻璃層門SUS304-1.2t發紋不銹鋼 | E111: 加價 | G111: 15610.61947 | H111: 29000 | I111: 停
A112: 105 | D112: 四周包邊玻璃層門SUS304-1.5t鏡面不銹鋼 | E112: 加價 | G112: 21587.25664 | H112: 38000 | I112: 停
A113: 106 | B113: 廂門/層門加高200(標準：SUS304-1.5t發紋不銹鋼，高：2100) | D113: SUS304-1.2t發紋不銹鋼 | E113: 加價 | G113: -212.4955752 | H113: 2500 | I113: 台
A114: 107 | B114: 廂門/層門加高200(標準：SUS304-1.5t發紋不銹鋼，高：2100) | D114: SUS304-1.5t發紋不銹鋼 | E114: 加價 | G114: 392.691823 | H114: 2500 | I114: 台
A115: 108 | B115: 轎門2300mm （標準：噴塗或彩粧鋼板） | D115: SUS304-1.5t發紋不銹鋼 | E115: 加價 | G115: 3147 | H115: 7700 | I115: 停
A116: 109 | B116: 轎門2300mm （標準：噴塗或彩粧鋼板） | D116: SUS304-1.2t發紋不銹鋼 | E116: 加價 | G116: 2685 | H116: 7300 | I116: 停
A117: 110 | D117: SUS304-1.5t發紋不銹鋼 鍍鈦 | E117: 加價 | G117: 7499 | H117: 13500 | I117: 停
A118: 111 | D118: SUS304-1.5t鏡面不銹鋼 | E118: 加價 | G118: 3531 | H118: 11970 | I118: 停
A119: 112 | D119: SUS304-1.5t鏡面不銹鋼 鍍鈦 | E119: 加價 | G119: 8011 | H119: 15750 | I119: 停
A120: 113 | D120: SUS304-1.5t鏡面不銹鋼 蝕刻 | E120: 加價 | G120: 6910 | H120: 15750 | I120: 停
A121: 114 | D121: SUS304-1.5t鏡面不銹鋼 蝕刻 鍍鈦 | E121: 加價 | G121: 9168 | H121: 19000 | I121: 停
A122: 115 | D122: 四周包邊玻璃轎門SUS304-1.2t發紋不銹鋼 | E122: 加價 | G122: 12736 | H122: 33000 | I122: 停
A123: 116 | D123: 四周包邊玻璃轎門SUS304-1.5t鏡面不銹鋼 | E123: 加價 | G123: 15769 | H123: 42000 | I123: 停
A124: 117 | B124: 層門2300mm （標準：噴塗Q235A-1.5t） | D124: SUS304-1.5t發紋不銹鋼 | E124: 加價 | G124: 3396.784269 | H124: 7700 | I124: 停
A125: 118 | D125: 噴塗Q235A-1.2t | E125: 加價 | G125: 3158 | H125: 0 | I125: 停
A126: 119 | D126: SUS304-1.2t發紋不銹鋼 | E126: 加價 | G126: 6126.20817 | H126: 7000 | I126: 停
A127: 120 | D127: SUS304-1.5t發紋不銹鋼 鍍鈦 | E127: 加價 | G127: 9621.165395 | H127: 12000 | I127: 停
A128: 121 | D128: SUS304-1.5t鏡面不銹鋼 | E128: 加價 | G128: 6924.681543 | H128: 10300 | I128: 停
A129: 122 | D129: SUS304-1.5t鏡面不銹鋼 鍍鈦 | E129: 加價 | G129: 10105.48531 | H129: 14500 | I129: 停
A130: 123 | D130: SUS304-1.5t鏡面不銹鋼 蝕刻 | E130: 加價 | G130: 9051.762251 | H130: 14500 | I130: 停
A131: 124 | D131: SUS304-1.5t鏡面不銹鋼 蝕刻 鍍鈦 | E131: 加價 | G131: 11290.10564 | H131: 17500 | I131: 停
A132: 125 | D132: 四周包邊玻璃層門SUS304-1.2t發紋不銹鋼 | E132: 加價 | G132: 19007.61947 | H132: 31500 | I132: 停
A133: 126 | D133: 四周包邊玻璃層門SUS304-1.5t鏡面不銹鋼 | E133: 加價 | G133: 24984.25664 | H133: 40500 | I133: 停
A134: 127 | B134: 臨時層門 | D134: 冷軋板噴塗1.2t高度：2100 | E134: 加價 | G134: 1498.773791 | H134: 5200 | I134: 停
A135: 128 | D135: 冷軋板噴塗1.2t高度：2300 | E135: 加價 | G135: 1590.401883 | H135: 5400 | I135: 停
A136: 129 | B136: 追加臨時廂門 (烤漆) | D136: 冷軋板噴塗1.2t高度：2100 | E136: 加價 | G136: =H136*0.6 -> 3120 | H136: 5200 | I136: 台
A137: 130 | B137: 追加臨時廂門 (烤漆) | D137: 冷軋板噴塗1.2t高度：2300 | E137: 加價 | G137: =H137*0.6 -> 3240 | H137: 5400 | I137: 台
A138: 131 | B138: 廂門層門加高200(標準：噴塗Q235A-1.5t) | D138: 冷軋板噴塗1.2t | E138: 加價 | G138: -148.7469027 | H138: 2500 | I138: 停
A139: 132 | B139: 廂門層門加高200(標準：噴塗Q235A-1.5t) | D139: 冷軋板噴塗1.5t | E139: 加價 | G139: 130.8972743 | H139: 2500 | I139: 停
A140: A-2-6 轎壁(車廂側板)
A141: 133 | B141: 轎壁_P6-P9人乘 （前側+左右側+後側+車廂門） （標準：烤漆/彩妝） | D141: SUS304-1.5t 髮紋不銹鋼 | G141: =H133*0.6 -> 24300 | H141: 25200
A142: 134 | D142: SUS304-1.5t 髮紋不銹鋼 鍍鈦 | G142: =H134*0.6 -> 3120 | H142: 57750
A143: 135 | D143: SUS304-1.5t鏡面不銹鋼 | E143: 加價 | G143: 1570.767292 | H143: 40000 | I143: 台
A144: 136 | D144: SUS304-1.5t鏡面不銹鋼 鍍鈦 | E144: 加價 | G144: 14856.84064 | H144: 66000 | I144: 台
A145: 137 | D145: SUS304-1.5t鏡面不銹鋼 蝕刻 | E145: 加價 | G145: 13393.17112 | H145: 53000 | I145: 台
A146: 138 | D146: SUS304-1.5t鏡面不銹鋼 蝕刻 鍍鈦 | E146: 加價 | G146: 20187.92963 | H146: 86000 | I146: 台
A147: 139 | B147: 轎壁_大梯 （前側+左右側+後側+車廂門） （標準：烤漆/彩妝） | D147: SUS304-1.5t 髮紋不銹鋼 | E147: 加價 | G147: =H147*0.6 -> 16695 | H147: 27825
A148: 140 | D148: SUS304-1.5t 髮紋不銹鋼 鍍鈦 | E148: 加價 | G148: =H148*0.6 -> 54180 | H148: 90300
A149: 141 | D149: SUS304-1.5t鏡面不銹鋼 | E149: 加價 | G149: 35280 | H149: 58800
A150: 142 | D150: SUS304-1.5t鏡面不銹鋼 鍍鈦 | E150: 加價 | G150: 57600 | H150: 96000
A151: 143 | D151: SUS304-1.5t鏡面不銹鋼 蝕刻 | E151: 加價 | G151: 44730 | H151: 74550
A152: 144 | D152: SUS304-1.5t鏡面不銹鋼 蝕刻 鍍鈦 | E152: 加價 | G152: 71190 | H152: 118650
A153: 145 | B153: 轎廂淨高加高200（含加重） （標準：SUS304-1.5t發紋不銹鋼，淨高：2300） | D153: SUS304-1.5t發紋不銹鋼 | E153: 加價 | G153: 2772 | H153: 4620 | I153: 停
A154: 146 | B154: 車廂特殊裝潢 （標準：SUS304-1.5t發紋不銹鋼，淨高：2300） | D154: 3側板中間片鏡面不銹鋼SUS304-1.5t， 其中後側板鏡面不銹鋼SUS304-1.5t需及閘同寬 | E154: 加價 | G154: 13250.37409 | H154: 22000 | I154: 台
A155: 147 | B155: 側板單片特殊(烤漆→不鏽鋼) | D155: (烤漆→不鏽鋼髮紋) | G155: =H155*0.6 -> 3300 | H155: 5500 | I155: 片
A156: 148 | B156: 側板單片特殊(烤漆→不鏽鋼) | D156: (烤漆→鏡面不鏽鋼) | G156: =H156*0.6 -> 3900 | H156: 6500 | I156: 片
A157: 149 | B157: 側板單片特殊 | D157: (烤漆→不鏽鋼髮紋 鍍鈦) | G157: 4440 | H157: 7400 | I157: 片
A158: 150 | B158: 側板單片特殊 | D158: (烤漆→鏡面 不鏽鋼 鍍鈦) | G158: 5220 | H158: 8700 | I158: 片
A159: 151 | B159: 側板單片特殊 | D159: (烤漆→鏡面 不鏽鋼 蝕刻) | G159: 6120 | H159: 10200 | I159: 片
A160: 152 | B160: 車廂前側 RT PANEL(髮紋不鏽鋼) | D160: P6~24人(不含廂門) | G160: 4200 | H160: 7000 | I160: 台
A161: 153 | B161: 車廂前側 RT PANEL(髮紋不鏽鋼鍍鈦) | D161: P6~24人(不含廂門) | G161: 10680 | H161: 17800 | I161: 台
A162: 154 | B162: 車廂前側 RT PANEL(鏡面不鏽鋼) | D162: P6~24人(不含廂門) | G162: 8460 | H162: 14100 | I162: 台
A163: 155 | B163: OPB(前)側&CPI 烤漆→髮紋不鏽鋼 | D163: P6~24人(不含廂門) | G163: 4440 | H163: 7400 | I163: 台
A164: 156 | B164: OPB(前)側&CPI 烤漆→仿鍍鈦 | D164: P6~24人(不含廂門) | G164: 3360 | H164: 5600 | I164: 台
A165: A-2-7 其他車廂內裝配件
A166: 157 | B166: 二合一光幕(標準門高2100) | E166: 加價 | G166: 4906.19469 | H166: 11000 | I166: 台
A167: 158 | B167: 紫外線殺菌燈（型號：TL-16W）P社已有 | E167: 加價 | G167: 2217.6 | H167: 5700 | I167: 個
A168: 159 | B168: 風扇出風口 | E168: 加價 | G168: 252 | H168: 1500 | I168: 台
A169: 160 | B169: SHARP清淨機（臺灣） | E169: 加價 | G169: 27512 | H169: 45000 | I169: 台
A170: 161 | B170: 冷氣（臺灣） | E170: 加價 | G170: 38024 | H170: 95000 | I170: 套
A171: 162 | B171: 副操作盤 | E171: 加價 | G171: 5095.44 | H171: 13000 | I171: 套
A172: 163 | B172: 語音合成裝置 | D172: 語音報站器 | E172: 加價 | G172: 1033.2 | H172: 4200 | I172: 套
A173: 164 | B173: 車廂攝影機 | E173: 加價 | G173: 1338.053097 | H173: 12000 | I173: 套
A174: 165 | B174: CCTV配線預留 | D174: 5C FV線材(標準) | E174: 加價 | H174: 13000 | I174: 台
A175: 166 | B175: 無線遠端對講系統 | E175: 加價 | G175: 3978 | H175: 7500 | I175: 套
A176: 167 | B176: 殘障電梯(殘障OPB、殘障IND、殘障扶手、後側鏡面、語音合成) | D176: 二、超過十層樓之各層樓地板面積之和達500平方公尺者需設置。 | E176: 加價 | G176: 7627.5 | H176: 35000 | I176: 套
A177: 168 | B177: 開門延長 | D177: 三、超過十層樓之部分為樓梯間、昇降機間、機械室、裝飾塔、屋頂窗及其他類似用途之建築物不需設置。 | E177: 加價 | G177: 80.64 | H177: 1000 | I177: 套
A178: 169 | B178: 刷卡機系統 | D178: MCTC-IC-A2 | E178: 加價 | G178: 4430.16 | H178: 12000 | I178: 套
A179: 170 | B179: 多媒體屏 | D179: 13寸 | E179: 加價 | G179: 14616 | H179: 53000 | I179: 套
A180: 171 | B180: 車廂側板附壁鉤 | D180: P6~P24人 | E180: 加價 | G180: =H180*0.6 -> 6000 | H180: 10000 | I180: 台
A181: 172 | B181: 側板附壁鉤及保護掛毯(牛仔布) | D181: P6~P12人 | E181: 加價 | G181: =H181*0.6 -> 16620 | H181: 27700 | I181: 台
A182: 173 | B182: 側板附壁鉤及保護掛毯(牛仔布) | D182: P13~P20人 | E182: 加價 | G182: 19080 | H182: 31800 | I182: 台
A183: 174 | B183: 側板附壁鉤及保護掛毯(牛仔布) | D183: P24人 | E183: 加價 | G183: 21540 | H183: 35900 | I183: 台
A184: 175 | B184: 明鏡嵌入式(僅車廂後側)預留10mm | D184: P6~P24人(不包含鏡子,單純因應側板特殊所需加工及設計費) | E184: 加價 | G184: 4860 | H184: 8100 | I184: 台
A185: 176 | B185: 明鏡嵌入式(車廂三側)預留10mm | D185: P6~P24人(不包含鏡子,單純因應側板特殊所需加工及設計費) | E185: 加價 | G185: 9600 | H185: 16000 | I185: 台
A186: 177 | B186: 凸面鏡 | D186: 千鳥,展望有殘障時加計 | E186: 加價 | G186: 960 | H186: 1600 | I186: 面
A187: 178 | B187: 半身明鏡 | E187: 加價 | G187: 3480 | H187: 5800 | I187: 面
A188: 179 | B188: 中間片全身明鏡 | E188: 加價 | G188: 4740 | H188: 7900 | I188: 面
A189: 180 | B189: 車廂內法特殊 | D189: 客梯P6~P24人 | E189: 加價 | G189: 10200 | H189: 17000 | I189: 台
A190: 181 | B190: 車廂內法特殊 | D190: 貨梯-1000kg~2000kg | E190: 加價 | G190: 16800 | H190: 28000 | I190: 台
A191: 182 | B191: 車廂內法特殊 | D191: 貨梯-2500kg~3000kg | E191: 加價 | G191: 21000 | H191: 35000 | I191: 台
A192: 183 | B192: 車廂附防撞板 不鏽鋼 | D192: P6~P12人 | E192: 加價 | G192: 16200 | H192: 27000 | I192: 台
A193: 184 | B193: 車廂附防撞板 不鏽鋼 | D193: P13~P17人 | E193: 加價 | G193: 20400 | H193: 34000 | I193: 台
A194: 185 | B194: 車廂附防撞板 不鏽鋼 | D194: P20~P24人 | E194: 加價 | G194: 21000 | H194: 35000 | I194: 台
A195: 186 | B195: 車廂附防撞板 (橡膠) | D195: F-1000kg | E195: 加價 | G195: 36000 | H195: 60000 | I195: 台
A196: 187 | B196: 車廂附防撞板 (橡膠) | D196: F-1500kg~2000kg | E196: 加價 | G196: 42000 | H196: 70000 | I196: 台
A197: 188 | B197: 車廂附防撞板 (橡膠) | D197: F-2500kg~3000kg | E197: 加價 | G197: 51000 | H197: 85000 | I197: 台
A198: 189 | B198: 車廂附防撞板 不鏽鋼 | D198: F-1000kg | E198: 加價 | G198: 24000 | H198: 40000 | I198: 台
A199: 190 | B199: 車廂附防撞板 不鏽鋼 | D199: F-1500kg~2000kg | E199: 加價 | G199: 30000 | H199: 50000 | I199: 台
A200: 191 | B200: 車廂附防撞板 不鏽鋼 | D200: F-2500kg~3000kg | E200: 加價 | G200: 35400 | H200: 59000 | I200: 台
... 1 more rows

Sheet A-3車廂外部
A1: A-3 車廂外部
A2: 序號 | B2: 名稱 | C2: 編號 | D2: 規格/備註 | E2: 配置 | F2: 成本(NT) | G2: 定價 | H2: 單位
A3: A-3-1 小門框
A4: 1 | B4: 小門框(標準：噴塗Q235A-1.5t) | D4: SUS304-1.5t發紋不銹鋼 | E4: 加價 | F4: 641.3966442 | G4: 1500 | H4: 停
A5: 2 | B5: 小門框(標準：噴塗Q235A-1.5t) | D5: 噴塗Q235A-1.2t | E5: 加價 | F5: -42.49911504 | G5: 0 | H5: 停
A6: 3 | B6: 小門框(標準：噴塗Q235A-1.5t) | D6: SUS304-1.2t發紋不銹鋼 | E6: 加價 | F6: 556.3134159 | G6: 1300 | H6: 停
A7: 4 | B7: 小門框(標準：噴塗Q235A-1.5t) | D7: SUS304-1.5t鏡面不銹鋼 | E7: 加價 | F7: 844.2874195 | G7: 2300 | H7: 停
A8: 5 | B8: 小門框(標準：噴塗Q235A-1.5t) | D8: SUS304-1.5t鏡面不銹鋼 鍍鈦 | E8: 加價 | F8: 1433.325154 | G8: 3500 | H8: 停
A9: 6 | B9: 小門框(標準：噴塗Q235A-1.5t) | D9: SUS304-1.5t鏡面不銹鋼 蝕刻 | E9: 加價 | F9: 1164.985742 | G9: 5000 | H9: 停
A10: 7 | B10: 小門框(標準：噴塗Q235A-1.5t) | D10: SUS304-1.5t鏡面不銹鋼 蝕刻 鍍鈦 | E10: 加價 | F10: 1727.844021 | G10: 7500 | H10: 停
A11: 8 | B11: 小型門框 髮紋不鏽鋼 鍍鈦 | D11: 2P-CO ≦OP-800~1100 | F11: =G11*0.6 -> 2280 | G11: 3800 | H11: 停
A12: 9 | B12: 小型門框 鏡面不鏽鋼 | D12: 2P-CO ≦OP-800~1100 | F12: =G12*0.6 -> 2220 | G12: 3700 | H12: 停
A13: 10 | B13: 小型門框 鏡面不鏽鋼 鍍鈦 | D13: 2P-CO ≦OP-800~1100 | F13: 2760 | G13: 4600 | H13: 停
A14: 11 | B14: 小型門框 髮紋不鏽鋼 | D14: 2P-CO≦OP-800~1100*2300H | F14: 1320 | G14: 2200 | H14: 停
A15: 12 | B15: 小型門框 仿鍍鈦烤漆 | D15: 2P-CO ≦OP-800~1100 | F15: 2400 | G15: 4000 | H15: 停
A16: 13 | B16: 大型門框 髮紋不鏽鋼HH=2100 A=240 | D16: OP-800~1100 A值≦380 | F16: 8040 | G16: 13400 | H16: 停
A17: 14 | B17: 大型門框 髮紋不鏽鋼鍍鈦 HH=2100 A=240 | D17: OP-800~1100 A值≦380 | F17: 12540 | G17: 20900 | H17: 停
A18: 15 | B18: 大型門框 鏡面不鏽鋼 HH=2100 A=240 | D18: OP-800~1100 A值≦380 | F18: 10380 | G18: 17300 | H18: 停
A19: 16 | B19: 大型門框 鏡面不鏽鋼 鍍鈦 HH=2100 A=240 | D19: OP-800~1100 A值≦380 | F19: 15420 | G19: 25700 | H19: 停
A20: 17 | B20: 大型門框 仿鍍鈦烤漆 HH=2100 A=240 | D20: OP-800~1100 A值≦380 | F20: 7140 | G20: 11900 | H20: 停
A21: 18 | B21: 小型門框附幕板 髮紋不鏽鋼 | D21: OP-800~1100 全高≦3000 | F21: 9000 | G21: 15000 | H21: 停
A22: 19 | B22: 小型門框附幕板 髮紋不鏽鋼 鍍鈦 | D22: OP-800~1100 全高≦3000 | F22: 13260 | G22: 22100 | H22: 停
A23: 20 | B23: 小型門框附幕板 鏡面不鏽鋼 | D23: OP-800~1100 全高≦3000 | F23: 10980 | G23: 18300 | H23: 停
A24: 21 | B24: 小型門框附幕板 鏡面不鏽鋼 鍍鈦 | D24: OP-800~1100 全高≦3000 | F24: 15060 | G24: 25100 | H24: 停
A25: 22 | B25: 小框附幕板 仿鍍鈦烤漆 | D25: OP-800~1100 全高≦3000 | F25: 9600 | G25: 16000 | H25: 停
A26: 23 | B26: 大型門框附幕板 髮紋不鏽鋼 | D26: OP-800~1100 全高≦3000 | F26: 18360 | G26: 30600 | H26: 停
A27: 24 | B27: 大型門框附幕板 髮紋不鏽鋼 鍍鈦 | D27: OP-800~1100 全高≦3000 | F27: 23880 | G27: 39800 | H27: 停
A28: 25 | B28: 大型門框附幕板 鏡面不鏽鋼 | D28: OP-800~1100 全高≦3000 | F28: 20280 | G28: 33800 | H28: 停
A29: 26 | B29: 大型門框附幕板 鏡面不鏽鋼 鍍鈦 | D29: OP-800~1100 全高≦3000 | F29: 25740 | G29: 42900 | H29: 停
A30: 27 | B30: 大框附幕板 仿鍍鈦烤漆 | D30: OP-800~1100 A值≦380 | F30: 15180 | G30: 25300 | H30: 停
A31: 28 | B31: 一體式門框 | D31: OP-800~1100全高≦3000 | F31: 12000 | G31: 18000 | H31: 停
A32: 29 | B32: 小型門框 髮紋不鏽鋼 鍍鈦 | D32: 2S-2P OP-1100~1200W | F32: =G32*0.6 -> 3540 | G32: 5900 | H32: 停
A33: 30 | B33: 小型門框 鏡面不鏽鋼 | D33: 2S-2P OP-1100~1200W | F33: =G33*0.6 -> 3180 | G33: 5300 | H33: 停
A34: 31 | B34: 小型門框 髮紋不鏽鋼 鍍鈦 | D34: 2S-2P OP-1100~1200W | F34: 4440 | G34: 7400 | H34: 停
A35: 32 | B35: 大型門框 髮紋不鏽鋼 | D35: 2S-1100.1200 A值≦380 | F35: 7980 | G35: 13300 | H35: 停
A36: 33 | B36: 大型門框 髮紋不鏽鋼 鍍鈦 | D36: 2S-1100.1200 A值≦380 | F36: 13140 | G36: 21900 | H36: 停
A37: 34 | B37: 大型門框 鏡面不鏽鋼 | D37: 2S-1100.1200 A值≦380 | F37: 12000 | G37: 20000 | H37: 停
A38: 35 | B38: 大型門框 鏡面不鏽鋼 鍍鈦 | D38: 2S-1100.1200 A值≦380 | F38: 15780 | G38: 26300 | H38: 停
A39: 36 | B39: 大型門框 髮紋不鏽鋼 | D39: 2S-1400~1700W A值≦380 | F39: 9360 | G39: 15600 | H39: 停
A40: 37 | B40: 大型門框 髮紋不鏽鋼 | D40: 4C-1700~2300W A值≦380 | F40: 13980 | G40: 23300 | H40: 停
A41: A-3-2 外呼(乘場指示器)
A42: 38 | B42: 外呼 | C42: MF001 | D42: 不銹鋼有底盒 | E42: 標配 | F42: 0 | H42: 停
A43: 39 | B43: 外呼 | C43: MF002 | D43: 並聯不銹鋼有底盒 | E43: 選配 | F43: 789.4513274 | G43: 1600 | H43: 停
A44: 40 | B44: 外呼 | C44: MF003 | D44: 不銹鋼無底盒 | E44: 選配 | F44: 0 | H44: 停
A45: 41 | B45: 外呼 | C45: MF004 | D45: 並聯不銹鋼無底盒 | E45: 選配 | F45: 227.4690265 | G45: 525 | H45: 停
A46: 42 | B46: 外呼 | C46: MF005 | D46: 液晶無底盒 | E46: 選配 | F46: 762.6902655 | G46: 1600 | H46: 停
A47: 43 | B47: 外呼 | C47: MF006 | D47: 液晶無底盒 | E47: 選配 | F47: 762.6902655 | G47: 1800 | H47: 停
A48: 44 | B48: 外呼 | C48: MF007 | D48: 殘障有底盒附盲文點字板 | E48: 選配 | F48: 414.7964602 | G48: 1000 | H48: 停
A49: 45 | B49: 外呼 | C49: MF008 | D49: 殘障並聯有底盒附盲文點字板 | E49: 選配 | F49: 1239.929204 | G49: 2500 | H49: 停
A50: 46 | B50: 外呼 | C50: MF009 | D50: 殘障並聯手勢呼梯有底盒附盲文點字板 | E50: 選配 | F50: 1342.513274 | G50: 2700 | H50: 停
A51: 47 | B51: 外呼 | C51: MF010 | D51: 手勢呼梯有底盒 | E51: 選配 | F51: 499.539823 | G51: 1050 | H51: 停
A52: 48 | B52: 外呼 | C52: MF011 | D52: 殘障無底盒附盲文點字板和MF012搭配用 | E52: 選配 | F52: 13.38053097 | G52: 500 | H52: 停
A53: 49 | B53: 外呼 | C53: MF012 | D53: 殘障無底盒和MF011搭配用 | E53: 選配 | F53: 303.2920354 | G53: 500 | H53: 停
A54: 50 | B54: 外呼 | C54: MF013 | D54: 無接觸式外呼 | E54: 選配 | F54: 3269.309735 | G54: 4500 | H54: 停
A55: 51 | B55: 外呼 | C55: MF014 | D55: 殘障+手勢呼梯有底盒附盲文點字板 | E55: 選配 | F55: 517.380531 | G55: 1500 | H55: 停
A56: 52 | B56: 外呼 | C56: MF015 | D56: 殘障有底盒和MF001搭配用 | E56: 選配 | F56: 334.5132743 | G56: 1000 | H56: 停
A57: 53 | B57: 外呼 | C57: MF016 | D57: 殘障有底盒 | E57: 選配 | F57: 365.7345133 | G57: 1000 | H57: 停
A58: 54 | B58: 外呼 | C58: MF017 | D58: 殘障手勢呼梯有底盒 | E58: 選配 | F58: 463.8584071 | G58: 1000 | H58: 停
A59: 55 | B59: 外呼 | C59: MF018 | D59: 手勢呼梯有底盒附盲文點字板 | E59: 選配 | F59: 102.5840708 | G59: 400 | H59: 停
A60: 56 | B60: 外呼 | C60: MF019 | D60: 並聯殘障有底盒附盲文點字板，左側 | E60: 選配 | F60: 1373.734513 | G60: 2800 | H60: 停
A61: 57 | B61: 外呼 | C61: MF020 | D61: 並聯殘障有底盒附盲文點字板，右側 | E61: 選配 | F61: 1373.734513 | G61: 2800 | H61: 停
A62: 58 | B62: 外呼 | C62: MF021 | D62: 無底盒 | E62: 選配 | F62: 160.5663717 | G62: 400 | H62: 停
A63: 59 | B63: 外呼 | C63: MF022 | D63: 無底盒帶手勢呼梯 | E63: 選配 | F63: 182.8672566 | G63: 400 | H63: 停
A64: 60 | B64: 群管裡(2台聯動) | E64: 選配 | F64: =G64*0.6 -> 4740 | G64: 7900 | H64: 群
A65: 61 | B65: 群管理 (3~8台/群) | D65: 3~8台群管理(無群管理盤) | E65: 選配 | F65: =G65*0.6 -> 33780 | G65: 56300 | H65: 群
A66: 62 | B66: 人流管控(群) | D66: 僅限一層樓(一般為大廳) | E66: 選配 | G66: 特殊詢價 | H66: 群
A67: A-3-3 到站燈
A68: 63 | B68: 到站燈 | C68: MG001 | E68: 選配 | F68: 1110.584071 | G68: 2500 | H68: 停
A69: 64 | B69: 到站燈 | C69: MG002 | E69: 選配 | F69: 1110.584071 | G69: 2500 | H69: 停
A70: 65 | B70: 到站燈 | C70: MG003 | E70: 選配 | F70: 2872.353982 | G70: 6000 | H70: 停
A71: 66 | B71: 到站燈 | C71: MG004 | E71: 選配 | F71: 1436.176991 | G71: 2900 | H71: 停
A72: 67 | B72: 到站燈 | C72: MG005 | E72: 選配 | F72: 1855.433628 | G72: 4000 | H72: 停
A73: 68 | B73: 到站燈 | C73: MG006 | E73: 選配 | F73: 2368.353982 | G73: 5500 | H73: 停
A74: A-3-4 門開方式與門
A75: 69 | B75: 2P-CO→2S-2P(台) | D75: P6~24人(OP≦1100) | E75: 加價 | F75: =G75*0.6 -> 4800 | G75: 8000 | H75: 台
A76: 70 | B76: 2P-CO→2S-2P(停) | D76: P6~24人(OP≦1100) | E76: 加價 | F76: =G76*0.6 -> 3000 | G76: 5000 | H76: 停
A77: 71 | B77: 貫通門-轎廂（轎門標準SUS304-1.5t） | D77: SUS304-1.5t | E77: 加價 | F77: 15469.67788 | G77: 85000 | H77: 台
A78: 72 | D78: 冷軋板噴塗1.5t | E78: 加價 | F78: 13089.72743 | G78: 80000 | H78: 台
A79: 73 | B79: 貫通門-乘場（層門門框標準Q235A-1.5t） | D79: 冷軋板噴塗1.5t | E79: 加價 | F79: 4164.913274 | G79: 9000 | H79: 停
A80: 74 | D80: SUS304-1.5t | E80: 加價 | F80: 8151.330265 | G80: 15000 | H80: 停
A81: 75 | B81: 千鳥型 | D81: P9人 | E81: 加價 | F81: =G81*0.6 -> 78000 | G81: 130000 | H81: 台
A82: 76 | B82: 千鳥型 | D82: P10~P11人 | E82: 加價 | F82: =G82*0.6 -> 96000 | G82: 160000 | H82: 台
A83: 77 | B83: 千鳥型 | D83: P12~P15人 | E83: 加價 | F83: 90000 | G83: 150000 | H83: 台
A84: 78 | B84: 千鳥型 | D84: P17~P24人 | E84: 加價 | F84: 79200 | G84: 132000 | H84: 台
A85: 79 | B85: L型千鳥 | D85: P9人 | E85: 加價 | F85: 195000 | G85: 325000 | H85: 台
A86: 80 | B86: L型千鳥 | D86: P10~P11人 | E86: 加價 | F86: 216000 | G86: 360000 | H86: 台
A87: 81 | B87: L型千鳥 | D87: P12~P15人 | E87: 加價 | F87: 204000 | G87: 340000 | H87: 台
A88: 82 | B88: 千鳥型 | D88: 貨梯1000kg~2000kg | E88: 加價 | F88: 90000 | G88: 150000 | H88: 台
A89: 83 | B89: 千鳥型 | D89: 貨梯2500kg~3000kg | E89: 加價 | F89: 120000 | G89: 200000 | H89: 台
A90: 87 | B90: 防火門(停)(2P-CO) | D90: 不鏽鋼 | E90: 加價 | F90: 19200 | G90: 32000 | H90: 停
A91: 89 | B91: 防火門(停)(2S-2P) | D91: 不鏽鋼 | E91: 加價 | F91: 24000 | G91: 40000 | H91: 停

Sheet A-4控制與其他
A1: A-4 控制與其他
A2: 序號 | B2: 名稱 | C2: 編號 | D2: 規格/備註 | E2: 配置 | F2: 成本(NT) | G2: 定價 | H2: 單位
A3: A-4-1 功能與配置
A4: 1 | B4: 專用運轉 | D4: 操作電梯，可提供客戶做專用運轉(例：看來車廂人滿了,直接經過外面叫車之樓層，直接到達服務樓層 | E4: 加價 | F4: =G4*0.6 -> 720 | G4: 1200 | H4: 台
A5: 2 | B5: 車廂追加到樓鈴 | D5: 到樓鈴: 電子 | E5: 加價 | F5: =G5*0.6 -> 1500 | G5: 2500 | H5: 台
A6: 3 | B6: 乘場追加到樓鈴 | D6: 到樓鈴: 電子 | E6: 加價 | F6: 780 | G6: 1300 | H6: 停
A7: 4 | B7: 對講機配線至管理員室以100M計(不含配管) | E7: 加價 | F7: 10500 | G7: 17500 | H7: 台
A8: 5 | B8: 對講機線材100M計 | E8: 加價 | F8: 6720 | G8: 11200 | H8: 台
A9: 6 | B9: 車廂預留電話機接點 | D9: 僅接點預留 | E9: 加價 | F9: 8040 | G9: 13400 | H9: 台
A10: 7 | B10: 追加電話機(工廠配合留孔) | E10: 加價 | F10: 420 | G10: 700 | H10: 台
A11: 8 | B11: 追加電話機(工事現地配合鑽孔) | D11: 針對現地配合的人工費用 | E11: 加價 | F11: 4200 | G11: 7000 | H11: 台
A12: 9 | B12: 車廂預留刷卡機接點 | D12: 僅接點預留 | E12: 加價 | F12: 7800 | G12: 13000 | H12: 台
A13: 10 | B13: 車廂預留刷卡機接點+面板開孔 | D13: 僅接點預留&面板留孔 | E13: 加價 | F13: 9480 | G13: 15800 | H13: 台
A14: 11 | B14: 遠隔監控 (組) | D14: 1~7台/組 (配賦於第1台) | E14: 加價 | F14: 9480 | G14: 15800 | H14: 台
A15: 12 | B15: 遠隔監控工事配線費(EAS) | E15: 加價 | F15: 3780 | G15: 6300 | H15: 台
A16: 13 | B16: 物聯網(BY工務購買) | D16: 1~4台/組用, 5~8台/2組 | E16: 加價 | F16: 10860 | G16: 18100 | H16: 組
A17: 14 | B17: 廂內監控(需搭配物聯網) | D17: 物聯網費用需另計 | E17: 加價 | F17: 116820 | G17: 194700 | H17: 台
A18: 15 | B18: 直話機系統 | D18: 與車廂內"緊急呼叫"共用按鈕 1.按下3秒內,為一般緊急呼叫,可與升降道外對講 2.按著超過3秒以上,則直接撥通電話至設定的第一組號碼(一般來說可設置6組號碼)，無人接聽時往下一組號碼撥號 (需請客戶申請市話，方能用電話線接進去，需預先錄製語音) 適用:EAS,VAG | E18: 加價 | F18: 10560 | G18: 17600 | H18: 台
A19: 16 | B19: 火警受信運轉 | D19: WL432 | E19: 加價 | F19: 4334.4 | G19: 6300 | H19: 套
A20: 17 | B20: 火災管制 | D20: 火災管制：當兩台電梯聯動時，其中一台為緊急用電梯，則隔壁台需有火災管制功能 | E20: 加價 | F20: =G20*0.6 -> 2880 | G20: 4800 | H20: 台
A21: 18 | B21: 緊急用 | D21: 緊急用：一、建築物高度超過十層樓以上部分之最大一層樓地板面積，在1500平方公尺以下者，至少應設置一座：超過1500平方公尺時，每達3000平方公尺，增設一座。 | E21: 加價 | F21: =G21*0.6 -> 10200 | G21: 17000 | H21: 台
A22: 19 | B22: ARD | D22: 四、超過十層樓之各層樓地板面積之和未達500平方公尺者不需設置。 | E22: 加價 | F22: 7156.8 | G22: 39000 | H22: 套
A23: 20 | B23: 停機操作 | E23: 加價 | F23: 100.8 | G23: 500 | H23: 套
A24: 21 | B24: 滿載直駛 | D24: 操作盤檢修增加直駛開關非標加價 | E24: 加價 | F24: 1008 | G24: 3000 | H24: 套
A25: 22 | B25: 能量回饋 | E25: 加價 | F25: 14822.64 | G25: 42000 | H25: 套
A26: 23 | B26: 對重附安全鉗（包含限速器等） | D26: P8-P15 | E26: 加價 | F26: 15610.61947 | G26: 42000 | H26: 組
A27: 24 | B27: 對重附安全鉗（包含限速器等） | D27: P17 | F27: =G27*0.6 -> 37800 | G27: 63000
A28: 25 | B28: 對重附安全鉗（包含限速器等） | D28: P24 | F28: =G28*0.6 -> 44100 | G28: 73500
A29: 26 | B29: 井道頂部追加防沖梁 | E29: 加價 | F29: 2520 | G29: 6500 | H29: 台
A30: 27 | B30: 人臉識別 | E30: 加價 | F30: =G30*0.6 -> 39000 | G30: 65000 | H30: 套
B31: 地震感知器
A32: A-4-2 OH與樓高
A33: 28 | B33: OH ≧7.5M | D33: P6~P11人 | E33: 加價 | F33: =G33*0.6 -> 9300 | G33: 15500 | H33: 台
A34: 29 | B34: OH ≧7.5M | D34: P12~P15人 | E34: 加價 | F34: =G34*0.6 -> 10140 | G34: 16900 | H34: 台
A35: 30 | B35: OH ≧7.5M | D35: P17~P24人 | E35: 加價 | F35: 12120 | G35: 20200 | H35: 台
A36: 31 | B36: OH ≧7.5M | D36: B-750~1000kg | E36: 加價 | F36: 11040 | G36: 18400 | H36: 台
A37: 32 | B37: OH ≧7.5M | D37: F-1000kg | E37: 加價 | F37: 12420 | G37: 20700 | H37: 台
A38: 33 | B38: OH ≧7.5M | D38: F-1500~2000kg | E38: 加價 | F38: 15300 | G38: 25500 | H38: 台
A39: 34 | B39: OH ≧7.5M | D39: F-2500~3000kg | E39: 加價 | F39: 21180 | G39: 35300 | H39: 台
A40: 35 | B40: OH 超過6M | E40: 加價 | F40: 3780 | G40: 6300 | H40: 台
A41: 36 | B41: OH>5M,追加吊樑施工 | D41: 僅VAG無機房機種 | E41: 加價 | F41: 3780 | G41: 6300 | H41: 台
A42: 37 | B42: 樓高 ≧ 6M | D42: P6~P11人 | E42: 加價 | F42: 8280 | G42: 13800 | H42: 樓
A43: 38 | B43: 樓高 ≧ 6M | D43: P12~P15人 | E43: 加價 | F43: 9060 | G43: 15100 | H43: 樓
A44: 39 | B44: 樓高 ≧ 6M | D44: P17~P24人 | E44: 加價 | F44: 11160 | G44: 18600 | H44: 樓
A45: 40 | B45: 樓高 ≧ 6M | D45: B-750~1000kg | E45: 加價 | F45: 10080 | G45: 16800 | H45: 樓
A46: 41 | B46: 樓高 ≧ 6M | D46: F-1000kg | E46: 加價 | F46: 11520 | G46: 19200 | H46: 樓
A47: 42 | B47: 樓高 ≧ 6M | D47: F-1500~2000kg | E47: 加價 | F47: 14340 | G47: 23900 | H47: 樓
A48: 43 | B48: 樓高 ≧ 6M | D48: F-2500~3000kg | E48: 加價 | F48: 20280 | G48: 33800 | H48: 樓
